[Event "SVK ECo-C Extraliga 2021-22"]
[Site "Slovakia"]
[Date "2022.05.07"]
[Round "7.6"]
[White "Nguyen, Piotr"]
[Black "Harasta, Igor"]
[Result "1-0"]
[ECO "A45"]
[WhiteElo "2402"]
[BlackElo "2112"]
[Annotator "TA"]
[PlyCount "85"]
[EventDate "2021.10.21"]
[EventType "team-tourn"]
[EventCountry "SVK"]
[SourceTitle "playchess.com"]
[Source "ChessBase"]
[SourceQuality "1"]
[TimeControl "40/5400+30:1800+30"]

{[%evp 20,85,31,11,49,43,46,43,52,46,52,50,49,56,52,45,45,34,46,39,46,37,68,60,63,56,79,66,77,77,115,122,104,77,70,70,129,119,154,127,177,141,299,268,237,161,154,96,169,129,138,138,146,136,222,0,125,0,227,162,162,162,197,88,509,451,1260,1058]} 1. d4 Nf6 2. Bg5 g6 {[%emt 0:02:04]} 3. Bxf6 exf6 4. e3 {[%emt 0:03:40]} Bg7 {[%emt 0:00:29]} 5. g3 {[%emt 0:01:17]} d6 {[%emt 0:01:23]} 6. Bg2 {[%emt 0:00:11]} O-O {[%emt 0:00:36]} 7. Ne2 {[%emt 0:00:11]} f5 {[%emt 0:01:21]} 8. c4 {[%emt 0:03:53]} Nd7 {[%emt 0:01:49]} 9. Nbc3 {[%emt 0:00:20]} c6 {[%emt 0:03:53]} 10. O-O {[%emt 0:02:30]} Nf6 {[%emt 0:00:55]} 11. b4 {[%emt 0:12:58]} Qc7 {[%emt 0:14:38] A45: Trompowsky Attack.} 12. Qd3 {[%emt 0:04:41]} Re8 {[%emt 0:03:11]} 13. Rab1 {[%emt 0:04:26]} Bd7 {[%emt 0:05:02] White is slightly better.} 14. Rfd1 {[%emt 0:05:18] [#]} Rad8 $146 {[%emt 0:02:37]} ({Predecessor:} 14... a5 15. b5 h5 16. Rb2 Rab8 17. Rdb1 Kh7 18. Qc2 Rec8 19. b6 Qd8 20. Rd1 Ra8 {1-0 (61) Rozic,V (2258)-Matijevic,F (2044) Nova Gorica 2012}) 15. d5 {[%emt 0:06:35]} cxd5 {[%emt 0:15:02]} 16. Nxd5 {[%emt 0:00:56]} Nxd5 {[%emt 0:01:01]} 17. Bxd5 {[%emt 0:00:12]} Be6 {[%emt 0:06:21]} 18. h4 {[%emt 0:12:26]} Be5 {[%emt 0:05:24]} 19. Rbc1 {[%emt 0:03:03]} Qb6 {[%emt 0:03:02]} 20. a3 {[%emt 0:03:21][%cal Ba2a3,Ba3b4][%mdl 32]} Qa6 {[%emt 0:02:46]} 21. Qb3 {[%emt 0:02:09]} Qb6 {[%emt 0:03:11]} 22. Rd2 {[%emt 0:03:12]} a5 {[%emt 0:03:12]} 23. Rcd1 {[%emt 0:05:22]} axb4 {[%emt 0:06:33]} 24. axb4 {[%emt 0:00:30]} Ra8 {[%emt 0:04:15]} 25. Bxe6 {[%emt 0:02:03]} Rxe6 {[%emt 0:00:54]} 26. Nd4 {[%emt 0:04:22]} (26. h5 {seems wilder.} Qc6 27. Nd4 Bxd4 28. Rxd4 Qf3 29. c5) 26... Bxd4 {[%emt 0:05:30]} 27. Rxd4 {[%emt 0:00:10][%cal Oh4h5]} Qc6 {[%emt 0:01:55]} ({Better is} 27... h5 $1 $14) 28. Rd5 $16 {[%emt 0:00:47]} Rc8 {[%emt 0:01:05]} 29. R1d4 {[%emt 0:00:10]} Kf8 {[%emt 0:02:06]} (29... Ra8 $16 {might work better.}) 30. h5 {[%emt 0:09:05]} Ke7 $2 {[%emt 0:00:21]} (30... b6 $16 {keeps fighting.} 31. Qd1 Ke7) 31. c5 $18 {[%emt 0:05:52]} dxc5 {[%emt 0:00:50]} 32. Rxc5 {[%emt 0:00:05]} Qe8 {[%emt 0:00:33]} 33. Qd5 {[%emt 0:00:05] White is much more active.} (33. Qc3 $142 Rec6 34. e4) 33... Rcc6 {[%emt 0:02:21]} (33... Kf8 $16) 34. Rxc6 {[%emt 0:03:48]} bxc6 {[%emt 0:00:25][%mdl 4096] Endgame KQR-KQR} 35. Qc5+ {[%emt 0:01:42]} Kf6 {[%emt 0:00:07]} 36. Qc3 $1 {[%emt 0:00:19] Threatens to win with Rd8+.} Ke7 {[%emt 0:01:02] Prevents Rd8.} (36... Kg5 $16 {was worth a try.}) 37. Qc5+ {[%emt 0:01:14]} (37. hxg6 $18 hxg6 38. Rd1) 37... Kf6 $16 {[%emt 0:00:07] [#]} 38. Qc3 {[%emt 0:00:03]} (38. hxg6 $1 $16 hxg6 39. Qc3) 38... Ke7 $1 $18 {[%emt 0:00:07]} 39. Qa3 {[%emt 0:00:41]} Kf6 {[%emt 0:00:28] [#]} 40. Qa1 $1 $36 {[%emt 0:01:14][%mdl 2048] aiming for Rd8+. White is on the roll.} Ke7 {[%emt 0:01:17] Inhibits Rd8.} 41. Qa7+ {[%emt 0:31:05]} (41. hxg6 $18 {and White stays clearly on top.} hxg6 42. Rd1) 41... Kf8 $2 {[%emt 0:12:12][%mdl 8192]} (41... Kf6 $16 {is tougher.}) 42. h6 {[%emt 0:00:00] Hoping for Qc7.} Re7 {[%emt 0:02:43] Against Qc7} (42... Re5 $142 43. Rd1 Rd5 44. Rxd5 cxd5) 43. Qb6 {[%emt 0:00:00] Weighted Error Value: White=0.28 (precise) /Black=0.47} 1-0

[Event "SVK ECo-C Extraliga 2021-22"]
[Site "Slovakia"]
[Date "2022.05.07"]
[Round "7.6"]
[White "Brnusak, Tomas"]
[Black "Motuz, Karol"]
[Result "1/2-1/2"]
[ECO "D05"]
[WhiteElo "2212"]
[BlackElo "2315"]
[Annotator "TA"]
[PlyCount "79"]
[EventDate "2021.10.21"]
[EventType "team-tourn"]
[EventCountry "SVK"]
[SourceTitle "playchess.com"]
[Source "ChessBase"]
[SourceQuality "1"]
[TimeControl "40/5400+30:1800+30"]

{[%evp 9,79,11,14,14,4,9,6,11,0,0,0,-8,-8,-14,0,0,0,0,0,0,0,0,0,0,0,0,0,4,12,-12,-23,-27,0,0,-7,0,0,0,0,0,0,0,0,0,0,0,3,8,31,-66,-68,-58,-68,-68,-68,-104,-101,-108,-108,-157,-154,-145,-8,-8,-8,-20,-20,-20,-8,-8,-8,-8]} 1. d4 {[%emt 0:00:04]} Nf6 {[%emt 0:01:27]} 2. Nf3 {[%emt 0:00:15]} d5 {[%emt 0:00:39]} 3. e3 {[%emt 0:00:05]} e6 {[%emt 0:01:22]} 4. Bd3 {[%emt 0:00:17]} Be7 {[%emt 0:00:35]} 5. b3 b6 6. Bb2 {[%emt 0:02:26] D05: Colle System with ...e6.} Bb7 {[%emt 0:05:05]} 7. Nbd2 {[%emt 0:01:19]} c5 {[%emt 0:04:00]} 8. Ne5 {[%emt 0:02:07]} O-O {[%emt 0:01:43]} 9. Qf3 {[%emt 0:00:59]} Nc6 {[%emt 0:02:52]} 10. a3 {[%emt 0:08:33] Inhibits Nb4.} Rc8 {[%emt 0:14:22][%cal Oc5c4]} 11. Qh3 {[%emt 0:12:04]} g6 {[%emt 0:14:27] [#]} 12. O-O $146 {[%emt 0:08:59]} ({Predecessor:} 12. f3 cxd4 13. Nxc6 Bxc6 14. exd4 Nh5 15. g3 Qd7 16. Qf1 Bd6 17. f4 Nf6 18. Qe2 {1-0 (40) Mohannad,F (2313)-Moayed,O (2102) Dubai 2014}) 12... cxd4 {[%emt 0:06:55]} 13. exd4 {[%emt 0:03:24]} Nxe5 {[%emt 0:14:34]} 14. dxe5 {[%emt 0:00:11]} Nd7 {[%emt 0:00:53]} 15. Nf3 {[%emt 0:09:16]} Nc5 {[%emt 0:02:21]} 16. Nd4 {[%emt 0:01:30]} Ba6 {[%emt 0:04:24]} 17. f4 {[%emt 0:04:00]} Bxd3 {[%emt 0:01:57]} 18. cxd3 {[%emt 0:00:05]} Qd7 $1 {[%emt 0:06:43]} 19. f5 {[%emt 0:06:50]} exf5 {[%emt 0:02:42]} 20. Nxf5 {[%emt 0:00:39]} Qe6 {[%emt 0:02:03]} (20... gxf5 $2 21. Qg3+ Kh8 22. e6+ d4 23. exd7 $18) (20... Ne6 $5 {[%cal Rg6f5]} 21. Nxe7+ (21. Nh6+ Kg7 $11) 21... Qxe7 $11) 21. d4 {[%emt 0:11:10]} gxf5 {[%emt 0:02:20]} 22. dxc5 {[%emt 0:00:07]} Bxc5+ {[%emt 0:01:20]} 23. Kh1 {[%emt 0:00:06]} f4 $1 {[%emt 0:01:13]} 24. Rxf4 {[%emt 0:03:17] Strongly threatening Qg3+.} Qxh3 {[%emt 0:00:44]} 25. gxh3 {[%emt 0:00:07]} Rc6 {[%emt 0:01:54]} 26. Rd1 {[%emt 0:05:48]} Rd8 {[%emt 0:00:51]} 27. b4 {[%emt 0:00:40] Hoping for e6.} Be3 {[%emt 0:01:37]} 28. Rf3 {[%emt 0:01:45]} Rc2 {[%emt 0:00:41] [#]} 29. Ba1 {[%emt 0:03:13] [#]} (29. e6 $1 $14 Rxb2 30. e7 (30. Rxe3 fxe6 31. Rxe6 Ra2 $15)) 29... Rc1 $1 $15 {[%emt 0:00:51]} 30. Rxc1 {[%emt 0:00:43]} Bxc1 {[%emt 0:00:00][%mdl 4096] Endgame KRB-KRB} 31. Kg2 {[%emt 0:06:06]} Rc8 $1 {[%emt 0:01:24]} 32. Kg3 {[%emt 0:03:25]} Rc2 {[%emt 0:01:18]} 33. Kg4 {[%emt 0:00:47] [#]} Ra2 $1 {[%emt 0:01:00]} ({Of course not} 33... Rxh2 $6 34. Rc3 Bb2 35. Bxb2 Rg2+ 36. Kf5 Rxb2 37. Rc7 $11) 34. Bc3 {[%emt 0:00:20]} ({White should play} 34. Bd4 Rxa3 35. Rc3 Rxc3 36. Bxc3) 34... Rxa3 $17 {[%emt 0:01:14]} ({And not} 34... Bxa3 35. Bd2 $17) 35. Kf5 {[%emt 0:00:01]} a5 {[%emt 0:01:12]} (35... Kf8 $17 36. Rg3 Ra2) 36. bxa5 {[%emt 0:00:02] The position is equal.} bxa5 {[%emt 0:00:01] aiming for ...Kf8.} 37. e6 {[%emt 0:01:03]} fxe6+ {[%emt 0:01:02]} 38. Kxe6 {[%emt 0:00:07]} d4 {[%emt 0:00:33]} 39. Rg3+ {[%emt 0:00:46]} Kf8 {[%emt 0:00:03]} 40. Rf3+ {[%emt 0:00:11] Weighted Error Value: White=0.12 (very precise) /Black=0.09 (flawless)} 1/2-1/2

[Event "SVK ECo-C Extraliga 2021-22"]
[Site "Slovakia"]
[Date "2022.05.07"]
[Round "7.6"]
[White "Sepesi, Samuel"]
[Black "Zetocha, Claudiu"]
[Result "0-1"]
[ECO "B42"]
[WhiteElo "2137"]
[BlackElo "2287"]
[Annotator "TA"]
[PlyCount "62"]
[EventDate "2021.10.21"]
[EventType "team-tourn"]
[EventCountry "SVK"]
[SourceTitle "playchess.com"]
[Source "ChessBase"]
[SourceQuality "1"]
[TimeControl "40/5400+30:1800+30"]

{[%evp 14,62,0,-7,0,7,31,-17,39,-34,44,0,0,-9,-2,-3,38,-70,-65,-87,-118,-129,-143,-140,0,0,267,-41,-47,-157,-163,-196,-203,-478,-477,-428,-274,-363,-350,-375,-387,-393,-56,-56,-57,-258,-284,-264,-259,-687,-681]} 1. e4 {[%emt 0:00:07]} c5 {[%emt 0:00:08]} 2. Nf3 {[%emt 0:00:06]} e6 {[%emt 0:00:16]} 3. d4 {[%emt 0:00:15]} cxd4 {[%emt 0:00:08]} 4. Nxd4 {[%emt 0:00:06]} a6 {[%emt 0:01:18]} 5. Bd3 {[%emt 0:02:00]} Nf6 {[%emt 0:03:28]} 6. Be3 {[%emt 0:07:15]} d6 {[%emt 0:05:21]} 7. Nc3 {[%emt 0:12:59]} b5 {[%emt 0:06:53]} 8. a3 {[%emt 0:02:05]} Bb7 {[%emt 0:01:43] B80: Sicilian Scheveningen: 6 g3 and 6 Be3, including English Attack.} 9. g4 {[%emt 0:07:09]} Be7 {[%emt 0:09:41]} 10. Qe2 {[%emt 0:11:58]} (10. g5 $14 {was preferrable.} Nfd7 11. f4) 10... Qc7 {[%emt 0:20:02] [#]} (10... d5 $11 11. e5 Nfd7) 11. O-O-O $146 {[%emt 0:02:40]} (11. g5 $14 Nfd7 12. O-O) ({Predecessor:} 11. g5 Nfd7 12. f4 Nc6 13. h4 Nc5 14. Rh3 Rc8 15. Nxc6 Qxc6 16. f5 Nxd3+ 17. Qxd3 {1-0 (36) Velazco,E-Parraga,A (2169) Arequipa 2003}) 11... Nc6 ({Better is} 11... d5 $1 $15 12. e5 Qxe5) 12. Nxc6 {[%emt 0:10:06]} Bxc6 {[%emt 0:04:48]} 13. g5 {[%emt 0:02:24]} Nd7 {[%emt 0:00:24]} 14. f4 {[%emt 0:01:10]} Qb7 {[%emt 0:05:19]} 15. b4 {[%emt 0:13:38] Against Nc5} (15. Rhg1 $14) 15... O-O $1 $15 {[%emt 0:10:05][%cal Be8g8,Bg8h7,Bh7h8][%mdl 32]} 16. h4 {[%emt 0:01:52]} a5 {[%emt 0:01:16]} 17. Rhg1 {[%emt 0:14:37]} (17. Bxb5 $2 axb4 18. axb4 d5 19. Bxc6 (19. exd5 $2 Bxb4 20. Qd3 Bxc3 $19) 19... Qxc6 $19) 17... axb4 {[%emt 0:04:13]} 18. axb4 {[%emt 0:00:02]} d5 {[%emt 0:01:18]} (18... Qc7 $17 {Hoping for ...Rfc8.} 19. Bxb5 (19. Nxb5 $2 Bxb5 20. Bxb5 Qc3 $19) 19... d5 20. exd5 Bxd5) 19. exd5 $11 {[%emt 0:01:22]} (19. Bxb5 $2 Bxb4 20. Bd4 Ra1+ 21. Nb1 Bxb5 $19) 19... Bxb4 $2 {[%emt 0:00:51][%mdl 8192]} (19... Bxd5 $11 20. Nxd5 (20. Bxb5 $2 Bxb4 21. Nxd5 exd5 $19) (20. Qh5 $2 g6 $19) 20... exd5) 20. Bxh7+ $2 {[%emt 0:03:11]} (20. dxc6 Bxc3 $1) (20. Bd4 $1 $18 {White threatens Bxh7+ and mate.} Bxc3 21. Bxc3 Bxd5 22. Qe3 (22. Bxb5 Rfc8 $17) (22. Qh5 Be4 $17)) 20... Kxh7 $15 {[%emt 0:01:36]} 21. dxc6 {[%emt 0:00:27]} (21. Bd4 $1 $15 Bxc3 22. Bxc3) 21... Qxc6 $17 {[%emt 0:02:05] Really sharp!} (21... Ra1+ 22. Kd2 Bxc3+ 23. Kxc3 Qxc6+ 24. Kb2 Rxd1 25. Rxd1 $11) 22. Nb1 {[%emt 0:01:32] [#] aiming for Qd3+.} Nc5 {[%emt 0:08:38] Against Qd3+} 23. h5 $2 {[%emt 0:03:02]} ({Don't blunder} 23. Qh5+ $2 Kg8 24. Bxc5 (24. g6 $2 {gets mated.} Nb3+ 25. Kb2 Ra2+ 26. Kxa2 Qxc2#) 24... Qxc5 $19) (23. Bxc5 {was necessary.} Bxc5 24. Rg3 (24. Qh5+ $2 Kg8 $19)) 23... Ra2 $19 {[%emt 0:03:13][%cal Rc5b3]} ({Stronger than} 23... Nb3+ 24. Kb2 Kg8 25. Kxb3 $19) 24. Bxc5 {[%emt 0:00:32]} Bxc5 {[%emt 0:01:08]} 25. g6+ {[%emt 0:00:13]} Kh8 {[%emt 0:00:45][%cal Oc5e3] ( -> ...Be3+!)} 26. Rg3 {[%emt 0:01:34][%cal Oh5h6] Against Be3+} Bd6 {[%emt 0:05:34]} 27. Rf1 {[%emt 0:01:03]} Qc4 $2 $40 {[%emt 0:02:05][%mdl 128] Black attacks.} (27... Qc7 $19 28. Rgf3 Rc8) 28. Qxc4 $15 {[%emt 0:00:32]} bxc4 {[%emt 0:00:01]} 29. Re3 $2 {[%emt 0:00:32]} (29. Rc3 $15) 29... fxg6 $19 {[%emt 0:01:10][%cal Bf7g6,Bg6h5][%mdl 32]} 30. Rxe6 {[%emt 0:00:00]} Bxf4+ {[%emt 0:00:00]} 31. Kd1 $2 {[%emt 0:00:00]} (31. Rxf4 Rxf4 32. hxg6) 31... gxh5 {[%emt 0:00:00] Weighted Error Value: White=0.84/Black=0.67} 0-1

[Event "SVK ECo-C Extraliga 2021-22"]
[Site "Slovakia"]
[Date "2022.05.08"]
[Round "7.6"]
[White "Gulbis, Adrian"]
[Black "Lipka, Juraj"]
[Result "0-1"]
[ECO "D45"]
[WhiteElo "2097"]
[BlackElo "2379"]
[Annotator "TA"]
[PlyCount "60"]
[EventDate "2021.10.21"]
[EventType "team-tourn"]
[EventCountry "SVK"]
[SourceTitle "playchess.com"]
[Source "ChessBase"]
[SourceQuality "1"]
[TimeControl "40/5400+30:1800+30"]

{[%evp 11,60,6,15,-12,-12,-4,0,-9,-9,-9,-5,-6,0,-7,0,0,-6,-11,-7,-8,0,0,0,-40,-32,-54,-11,-18,-27,-58,-36,-72,0,-31,0,-116,-37,-74,-84,-84,-80,-79,-81,-85,-77,-210,-235,-387,-204,-1000,-955]} 1. d4 {[%emt 0:00:09]} d5 {[%emt 0:00:28]} 2. c4 {[%emt 0:00:10]} e6 {[%emt 0:00:05]} 3. Nc3 {[%emt 0:00:07]} c6 {[%emt 0:00:16]} 4. e3 {[%emt 0:00:11]} Nf6 {[%emt 0:00:31]} 5. Nf3 {[%emt 0:00:12]} a6 {[%emt 0:01:02]} 6. a3 {[%emt 0:02:05]} Nbd7 {[%emt 0:02:35]} 7. Bd3 {[%emt 0:02:38] D45: Semi-Slav: 5 e3.} dxc4 {[%emt 0:03:34]} 8. Bxc4 {[%emt 0:00:11]} c5 {[%emt 0:02:10]} 9. dxc5 {[%emt 0:08:59] The position is equal.} Bxc5 {[%emt 0:00:31]} 10. b4 {[%emt 0:01:14]} Be7 {[%emt 0:04:36]} 11. Bb2 {[%emt 0:02:21]} b5 {[%emt 0:02:35]} 12. Bb3 {[%emt 0:03:13]} Bb7 {[%emt 0:02:57]} 13. O-O {[%emt 0:00:21]} O-O {[%emt 0:06:08]} 14. Qe2 {[%emt 0:13:13] [#]} Rc8 $146 {[%emt 0:12:38]} ({Predecessor:} 14... Qb6 15. e4 Ng4 16. Rfd1 Rfd8 17. h3 Nge5 18. Nxe5 Nxe5 19. Nxb5 Bf6 20. Nc3 Bc6 21. Rxd8+ Rxd8 {1-0 (30) Semenyuk,V (2119)-Zabava,O (2253) Dombaj 2011}) 15. Rfd1 {[%emt 0:01:41]} Qc7 {[%emt 0:03:09]} 16. Rac1 {[%emt 0:01:58][%cal Oc3b5]} Qb8 {[%emt 0:00:21]} 17. e4 {[%emt 0:13:31]} Rfd8 {[%emt 0:03:28]} 18. h3 {[%emt 0:05:15]} Qf4 {[%emt 0:17:04][%cal Rf6e4]} 19. g3 {[%emt 0:07:22]} Qb8 {[%emt 0:01:37]} 20. Qe3 {[%emt 0:03:37]} Qa8 {[%emt 0:03:19][%cal Rf6e4]} 21. Re1 {[%emt 0:04:21]} Rc7 {[%emt 0:07:23]} (21... Ne8 $17) 22. Kh2 {[%emt 0:06:38]} Rdc8 {[%emt 0:04:28][%cal Of6e4]} 23. Ba2 {[%emt 0:04:16]} (23. Rcd1 $11) 23... Ne8 {[%emt 0:04:09]} (23... a5 $17 24. Ra1 axb4 25. axb4 Qb8 26. Nxb5 Rc2 27. Bxf6 Nxf6) 24. Nd2 {[%emt 0:05:17]} a5 {[%emt 0:04:24]} 25. Nxb5 {[%emt 0:03:08]} Rxc1 {[%emt 0:00:08]} 26. Rxc1 {[%emt 0:00:14]} Rxc1 {[%emt 0:00:36]} 27. Bxc1 {[%emt 0:00:06]} axb4 {[%emt 0:00:08]} 28. Qd4 {[%emt 0:04:52]} (28. Bc4 $17 {is a better defense.}) 28... Bc6 $19 {[%emt 0:01:55]} 29. Bc4 {[%emt 0:03:08] [#]} (29. Qc4) 29... bxa3 {[%emt 0:01:12]} (29... Qa4 $142 30. axb4 Bxb5) 30. Na7 $2 {[%emt 0:01:05]} (30. Qa7 Qxa7 31. Nxa7) 30... Bc5 {[%emt 0:00:54] Weighted Error Value: White=0.66/Black=0.20 (precise)} 0-1

[Event "SVK ECo-C Extraliga 2021-22"]
[Site "Slovakia"]
[Date "2022.05.07"]
[Round "7.6"]
[White "Berta, Sandor"]
[Black "Karas, Marek"]
[Result "0-1"]
[ECO "A00"]
[WhiteElo "2054"]
[BlackElo "2292"]
[Annotator "TA"]
[PlyCount "98"]
[EventDate "2021.10.21"]
[EventType "team-tourn"]
[EventCountry "SVK"]
[SourceTitle "playchess.com"]
[Source "ChessBase"]
[SourceQuality "1"]
[TimeControl "40/5400+30:1800+30"]

{[%evp 10,98,12,-25,-11,-19,20,18,14,6,65,16,18,22,43,16,16,16,25,8,15,-25,-19,-23,-18,-65,-56,-64,-26,-14,-15,-16,-15,-41,-9,-19,-11,-60,-60,-58,-43,-60,-50,-124,-106,-136,-125,-194,-135,-181,-181,-200,-185,-178,-173,-181,-87,-87,-88,-205,-170,-145,-148,-241,-222,-249,-249,-303,-300,-373,-371,-637,-565,-640,-618,-739,-716,-915,-811,-780,-775,-774,-716,-5139,-5106,-29963,-29964,-29954,-29962,-5821,-5658]} 1. g3 {[%emt 0:00:31]} e5 {[%emt 0:00:23]} 2. Bg2 {[%emt 0:01:39]} Nf6 {[%emt 0:00:38]} 3. e4 {[%emt 0:01:53]} Nc6 {[%emt 0:06:13]} 4. Nc3 {[%emt 0:00:25]} Bc5 {[%emt 0:03:06]} 5. Nge2 {[%emt 0:00:29]} d6 {[%emt 0:04:53]} 6. h3 {[%emt 0:04:41]} a6 {[%emt 0:02:00] C26: Vienna Game: 2...Nf6, sidelines .} 7. O-O {[%emt 0:00:42]} Be6 {[%emt 0:01:56]} 8. Nd5 {[%emt 0:03:14]} Ba7 {[%emt 0:04:46] The position is equal.} 9. c3 {[%emt 0:05:30] [#]} Ne7 $146 {[%emt 0:05:50]} ({Black should try} 9... O-O $11) ({Predecessor:} 9... Qd7 10. Kh2 Ne7 11. Nxf6+ gxf6 12. f4 f5 13. exf5 Bxf5 14. d4 O-O-O 15. g4 exd4 16. gxf5 dxc3 17. bxc3 Nxf5 {1-0 (42) Mahindrakar,I (2042)-Khusenkhojaev,M (2427) Bhopal 2019}) 10. Nxe7 {[%emt 0:20:11]} (10. Nxf6+ $14 gxf6 11. d4) 10... Qxe7 $11 {[%emt 0:00:27]} 11. d4 {[%emt 0:00:16]} c5 {[%emt 0:17:52]} 12. Be3 {[%emt 0:09:54]} cxd4 {[%emt 0:02:52]} 13. cxd4 {[%emt 0:00:53]} O-O {[%emt 0:02:19]} 14. Nc3 {[%emt 0:05:01]} Rfd8 {[%emt 0:02:00]} 15. dxe5 {[%emt 0:16:16]} dxe5 {[%emt 0:00:21]} 16. Qe2 {[%emt 0:00:46]} Bd4 {[%emt 0:01:38]} 17. Bxd4 {[%emt 0:12:39]} (17. Rac1 $11) 17... exd4 $15 {[%emt 0:02:16]} ({Of course not} 17... Rxd4 18. Rfd1 $11) 18. e5 {[%emt 0:01:44]} dxc3 {[%emt 0:03:40]} (18... Nd7 $5 {[%cal Rd4c3]} 19. Nb1 Rac8 $17) 19. exf6 {[%emt 0:00:13]} Qxf6 {[%emt 0:00:26] aiming for ...Rd2.} 20. bxc3 {[%emt 0:00:17]} Rab8 {[%emt 0:05:39]} 21. Rfd1 {[%emt 0:07:40]} Rdc8 {[%emt 0:03:14]} 22. Rac1 {[%emt 0:01:07]} Qg5 {[%emt 0:06:22]} 23. Qd2 {[%emt 0:01:56]} (23. h4 $11 Qc5 24. c4) 23... Qxd2 {[%emt 0:02:03]} 24. Rxd2 {[%emt 0:00:01][%cal Oc3c4]} Kf8 {[%emt 0:02:48]} 25. h4 {[%emt 0:00:43]} Rc5 {[%emt 0:02:21]} 26. Rd4 {[%emt 0:01:09]} (26. a4 $15) 26... b5 {[%emt 0:01:49]} 27. a3 {[%emt 0:01:38] [#]} a5 $1 {[%emt 0:00:32][%cal Ob5b4] Prevents Rb4.} 28. Kf1 {[%emt 0:00:43] [#]} (28. Rdd1 $17 {was worth a try.}) 28... Rbc8 {[%emt 0:01:12]} (28... b4 $1 $19 {[%cal Rb4a3]} 29. axb4 axb4) 29. Rb1 {[%emt 0:01:39]} (29. Ke2 $17) 29... Rxc3 $19 {[%emt 0:00:15]} 30. Bd5 {[%emt 0:00:59]} Rc1+ {[%emt 0:02:52]} 31. Rxc1 {[%emt 0:00:10]} Rxc1+ {[%emt 0:00:01][%mdl 4096] Endgame KRB-KRB} 32. Ke2 {[%emt 0:00:19]} Rc3 {[%emt 0:00:18]} (32... Rc2+ $19 {and Black stays clearly on top.} 33. Ke1 Ke7) 33. Bxe6 $17 {[%emt 0:01:00]} fxe6 {[%emt 0:00:07] KR-KR} 34. Rd8+ {[%emt 0:00:25]} (34. a4 $17) 34... Ke7 $19 {[%emt 0:00:19]} 35. Rb8 {[%emt 0:00:26]} Rb3 {[%emt 0:00:17]} 36. Kd2 {[%emt 0:00:31]} (36. g4 $17 {was necessary.}) 36... a4 {[%emt 0:02:19]} ({Stronger than} 36... Rxa3 37. Rxb5 a4 38. Rb7+ Kf6 39. Rb4 $17) 37. Rb7+ {[%emt 0:00:34]} Kf6 {[%emt 0:00:08]} 38. Rb8 {[%emt 0:00:24]} h6 {[%emt 0:00:25][%cal Bh7h6,Bh6g5,Bg5g4][%mdl 32]} ({Don't blunder} 38... Rxa3 $2 39. Rxb5 Ra2+ 40. Ke3 $19) 39. Rb7 {[%emt 0:00:36]} g5 {[%emt 0:00:43]} 40. hxg5+ $2 {[%emt 0:00:42]} (40. Ke2) 40... hxg5 {[%emt 0:00:07]} 41. Ke2 {[%emt 0:04:33]} g4 {[%emt 0:01:40] ...Ke5 is the strong threat.} 42. Rb8 {[%emt 0:02:37]} Ke5 {[%emt 0:00:55]} 43. Rg8 {[%emt 0:12:11]} Rxa3 {[%emt 0:04:17]} 44. Rg5+ {[%emt 0:03:46]} Kd4 {[%emt 0:00:08]} 45. Rxb5 {[%emt 0:02:11]} Rb3 {[%emt 0:00:27]} 46. Rg5 {[%emt 0:06:53]} Kc3 {[%emt 0:00:11] ( -> ...a3)} 47. Rxg4 {[%emt 0:01:11]} a3 {[%emt 0:00:13][%cal Ba4a3,Ba3a2][%mdl 32]} 48. Ra4 {[%emt 0:00:38]} Kb2 {[%emt 0:00:11]} 49. g4 {[%emt 0:00:28]} a2 {[%emt 0:00:06] Weighted Error Value: White=0.66/Black=0.12 (very precise)} 0-1

[Event "SVK ECo-C Extraliga 2021-22"]
[Site "Slovakia"]
[Date "2022.05.08"]
[Round "7.6"]
[White "Visvader, Kristof"]
[Black "Szucs, Vladimir"]
[Result "1/2-1/2"]
[ECO "B35"]
[WhiteElo "1607"]
[BlackElo "2082"]
[Annotator "TA"]
[PlyCount "43"]
[EventDate "2021.10.21"]
[EventType "team-tourn"]
[EventCountry "SVK"]
[SourceTitle "playchess.com"]
[Source "ChessBase"]
[SourceQuality "1"]
[TimeControl "40/5400+30:1800+30"]

{[%evp 16,43,0,-10,32,25,25,16,117,0,0,0,0,0,0,0,29,26,16,18,19,-12,-4,-53,82,80,79,85,80,83]} 1. e4 {[%emt 0:30:08]} c5 {[%emt 0:30:05]} 2. Nf3 {[%emt 0:00:00]} Nc6 {[%emt 0:00:05]} 3. d4 {[%emt 0:00:18]} cxd4 {[%emt 0:00:15]} 4. Nxd4 {[%emt 0:00:04]} Nf6 {[%emt 0:00:07]} 5. Nc3 {[%emt 0:00:27]} g6 {[%emt 0:00:32]} 6. Be3 {[%emt 0:00:18]} Bg7 {[%emt 0:00:11]} 7. Bc4 {[%emt 0:00:55]} O-O {[%emt 0:00:13]} 8. h3 {[%emt 0:01:12]} d6 {[%emt 0:00:55]} 9. Qd2 {[%emt 0:00:59]} Re8 {[%emt 0:00:10][%cal Of6e4] B35: Sicilian: Accelerated Dragon with 5 Nc3: main line.} (9... Nxe4 {is interesting.} 10. Nxe4 d5 11. O-O-O Nxd4 12. Bxd4 dxc4 13. Bxg7 Qxd2+ 14. Nxd2 Kxg7 15. Nxc4 Be6) 10. O-O-O {[%emt 0:00:54]} Bd7 {[%emt 0:00:25] [#]} 11. Bh6 $146 {[%emt 0:01:45]} ({Predecessor:} 11. Nf3 Rc8 12. Bb3 a6 13. Bh6 Bh8 14. Ng5 b5 15. Bxf7# {1-0 (15) Karaivanova,P (1638)-Jurky,M (1303) Kouty nad Desnou 2018}) 11... Nxe4 {[%emt 0:05:03]} 12. Nxc6 {[%emt 0:04:58]} (12. Nxe4 $16 Bxd4 13. Ng5 (13. Qf4 Be6 $11)) 12... Nxd2 $11 {[%emt 0:10:08]} 13. Bxf7+ $1 {[%emt 0:00:38]} Kxf7 {[%emt 0:01:05]} 14. Nxd8+ {[%emt 0:00:07]} Raxd8 {[%emt 0:00:16]} 15. Bxg7 {[%emt 0:01:20]} Nb3+ {[%emt 0:00:59]} 16. axb3 {[%emt 0:00:08] [#] And now Bd4 would win.} Kxg7 {[%emt 0:00:06]} 17. Rhe1 {[%emt 0:00:38]} Bc6 {[%emt 0:00:35]} 18. g3 {[%emt 0:00:15]} e5 {[%emt 0:02:08]} 19. f4 {[%emt 0:08:11]} (19. b4 $11 {feels stronger.}) 19... e4 {[%emt 0:02:39]} (19... exf4 $1 $15 20. gxf4 Rxe1 21. Rxe1 Rd7) 20. Rd4 $16 {[%emt 0:00:55] White is better.} d5 {[%emt 0:00:42]} 21. Kd2 {[%emt 0:02:46]} Kf6 {[%emt 0:04:33]} 22. Ke3 {[%emt 0:01:46] Weighted Error Value: White=0.19 (very precise) /Black=0.43} 1/2-1/2